bitfinex-derivatives/quotes_BTCF0:USTF0_20251109
["timestamp","ask_amount","ask_price","bid_price","bid_amount"]
[1762686904984,0.02007704,102210.0,102200.0,1.52205663]
[1762686905690,0.02007704,102210.0,102200.0,1.45270843]
[1762686905989,0.02007704,102210.0,102200.0,1.53964699]
[1762686906182,0.02077598,102220.0,102210.0,0.4072]
[1762686906381,0.02077598,102220.0,102210.0,0.768]
[1762686906592,0.02077598,102220.0,102210.0,0.91533153]
[1762686906782,0.05174309,102230.0,102210.0,1.10011266]
[1762686906984,0.05174309,102230.0,102220.0,0.67464793]
[1762686907283,0.05174309,102230.0,102220.0,0.87521852]
[1762686907586,0.05174309,102230.0,102220.0,0.97304673]
[1762686907788,0.02354309,102230.0,102220.0,0.97304673]
[1762686907984,0.02354309,102230.0,102220.0,1.13564673]
[1762686908181,0.02545876,102240.0,102220.0,1.0913588]
[1762686908398,0.02545876,102240.0,102230.0,0.85489856]
[1762686908690,0.02545876,102240.0,102230.0,1.05467897]
[1762686908891,0.02545876,102240.0,102230.0,1.29919897]
[1762686909092,0.02545876,102240.0,102230.0,1.15250239]
[1762686909290,0.02545876,102240.0,102230.0,1.46621807]
[1762686910691,0.02545876,102240.0,102230.0,1.22169807]
[1762686910891,0.022209,102250.0,102230.0,1.62881807]
[1762686911092,0.022209,102250.0,102240.0,0.67451568]
[1762686911290,0.022209,102250.0,102240.0,1.07338952]
[1762686911492,0.022209,102250.0,102240.0,1.22058029]
[1762686911680,0.022209,102250.0,102240.0,1.38758983]
[1762686912694,0.022209,102250.0,102240.0,1.14506983]
[1762686912896,0.022209,102250.0,102240.0,1.38958983]
[1762686913194,0.022209,102250.0,102240.0,1.14506983]
[1762686913394,0.022209,102250.0,102240.0,1.38958983]
[1762686913595,0.022209,102250.0,102240.0,1.14506983]
[1762686913795,0.022209,102250.0,102240.0,1.53788983]
[1762686914187,0.022209,102250.0,102240.0,1.29336983]
[1762686914385,0.022209,102250.0,102240.0,1.46869415]
[1762686914588,0.022209,102250.0,102240.0,1.22417415]
[1762686914989,0.022209,102250.0,102240.0,1.46869415]
[1762686915189,0.022209,102250.0,102240.0,1.53788983]
[1762686915394,0.161069,102250.0,102240.0,1.46869415]
[1762686915597,0.161069,102250.0,102240.0,1.22417415]
[1762686915991,0.161069,102250.0,102240.0,1.46869415]
[1762686916192,0.102199,102250.0,102240.0,1.46869415]
[1762686916502,0.056649,102250.0,102240.0,1.46869415]
[1762686917098,0.056649,102250.0,102240.0,1.22417415]
[1762686917500,0.056649,102250.0,102240.0,1.46869415]
[1762686917698,0.056649,102250.0,102240.0,1.32039415]
[1762686917899,0.022209,102250.0,102240.0,1.32039415]
[1762686918200,0.022209,102250.0,102240.0,1.14506983]
[1762686918497,0.022209,102250.0,102240.0,1.55218983]
[1762686919299,0.022209,102250.0,102240.0,1.28511236]
[1762686919598,0.022209,102250.0,102240.0,1.04059236]
[1762686920100,0.056649,102250.0,102240.0,1.28511236]
[1762686921099,0.161069,102250.0,102240.0,0.82530031]
[1762686921302,0.161069,102250.0,102240.0,1.42591577]
[1762686921511,0.161069,102250.0,102240.0,1.35672009]
[1762686922194,0.58887599,102250.0,102240.0,1.15671386]
[1762686922596,1.18887599,102250.0,102240.0,0.5498]
[1762686922792,1.54967599,102250.0,102240.0,0.45435]
[1762686923008,0.13886,102240.0,102230.0,0.00014705]
[1762686923306,0.92746699,102240.0,102230.0,0.16020134]
[1762686924208,1.52746699,102240.0,102230.0,0.16220134]
[1762686924510,1.52746699,102240.0,102230.0,0.06439705]
[1762686925006,1.52746699,102240.0,102230.0,0.06739705]
[1762686928006,0.20268,102220.0,102210.0,1.14069395]
[1762686928406,0.63048699,102220.0,102210.0,1.23850781]
[1762686929509,0.63048699,102220.0,102210.0,1.24750781]
[1762686931007,0.63048699,102220.0,102210.0,1.31670349]
[1762686932208,0.95605743,102220.0,102210.0,0.72376954]
[1762686932407,0.95605743,102220.0,102210.0,0.62595568]
[1762686932607,0.95605743,102220.0,102210.0,0.55676]
[1762686933910,0.95605743,102220.0,102210.0,0.61876]
[1762686934314,0.95605743,102220.0,102210.0,0.71215]
[1762686934506,0.54211743,102220.0,102210.0,1.22692299]
[1762686934903,0.59525743,102220.0,102210.0,0.94616211]
[1762686935109,0.59525743,102220.0,102210.0,0.89002211]
[1762686935307,0.59525743,102220.0,102210.0,1.25082211]
[1762686935913,0.59525743,102220.0,102210.0,0.89002211]
[1762686936716,0.59525743,102220.0,102210.0,1.25082211]
[1762686937511,0.59525743,102220.0,102210.0,1.30696211]
[1762686938118,0.59525743,102220.0,102210.0,1.25082211]
[1762686938620,0.59525743,102220.0,102210.0,1.30696211]
[1762686938820,0.54211743,102220.0,102210.0,1.30696211]
[1762686941218,0.56971909,102220.0,102210.0,1.39390067]
[1762686942320,0.1419121,102220.0,102210.0,1.39390067]
[1762686942513,0.56971909,102220.0,102210.0,1.39390067]
[1762686944224,0.1419121,102220.0,102210.0,1.39390067]
[1762686944422,0.56971909,102220.0,102210.0,1.39390067]
[1762686946326,0.62309909,102220.0,102210.0,1.39390067]
[1762686946520,0.56971909,102220.0,102210.0,1.39390067]
[1762686947026,0.56971909,102220.0,102210.0,1.03310067]
[1762686947627,0.56971909,102220.0,102210.0,1.39390067]
[1762686947921,0.62309909,102220.0,102210.0,1.39390067]
[1762686948120,0.62309909,102220.0,102210.0,0.95948958]
[1762686948821,0.62309909,102220.0,102210.0,1.12208958]
[1762686949020,0.62309909,102220.0,102210.0,0.95948958]
[1762686949223,0.62309909,102220.0,102210.0,0.95429958]
[1762686949424,0.98389909,102220.0,102210.0,0.95429958]
[1762686950627,0.98389909,102220.0,102210.0,0.88483211]
[1762686950927,0.98389909,102220.0,102210.0,0.93365211]
[1762686951920,0.93051909,102220.0,102210.0,0.93365211]
[1762686952624,0.98389909,102220.0,102210.0,0.97177067]
[1762686954031,0.98389909,102220.0,102210.0,0.88483211]
[1762686954931,0.98389909,102220.0,102210.0,0.93365211]
[1762686956622,0.98389909,102220.0,102210.0,0.97177067]
[1762686958933,0.98389909,102220.0,102210.0,0.88483211]
[1762686959132,0.98389909,102220.0,102210.0,1.00674867]
[1762686959432,0.98389909,102220.0,102210.0,0.99606399]
[1762686959632,0.98389909,102220.0,102210.0,0.55676]
[1762686960733,0.98389909,102220.0,102210.0,0.62249458]
[1762686960936,0.98389909,102220.0,102210.0,0.62349458]
[1762686961723,0.98489909,102220.0,102210.0,0.06973458]
[1762686962532,0.98589909,102220.0,102210.0,0.28679458]
[1762686962933,0.98589909,102220.0,102210.0,0.23941458]
[1762686963238,0.98589909,102220.0,102210.0,0.31584526]
[1762686964037,0.93251909,102220.0,102210.0,0.36322526]
[1762686964734,0.98415909,102220.0,102210.0,0.36322526]
[1762686964935,0.98415909,102220.0,102210.0,0.31584526]
[1762686966332,0.98415909,102220.0,102210.0,0.24611068]
[1762686966840,0.98415909,102220.0,102210.0,0.14610235]
[1762686969844,0.98415909,102220.0,102210.0,0.06967167]
[1762686971036,0.98415909,102220.0,102210.0,1.67e-06]
[1762686971237,0.19002,102210.0,102200.0,0.00014705]
[1762686971438,0.97862699,102210.0,102200.0,0.00014705]
[1762686972838,0.97862699,102210.0,102200.0,0.00114705]
[1762686973040,0.97862699,102210.0,102200.0,0.17082705]
[1762686974343,0.97862699,102210.0,102200.0,0.00114705]
[1762686974546,0.97862699,102210.0,102200.0,0.08469705]
[1762686974744,0.97862699,102210.0,102200.0,0.00114705]
[1762686975135,0.97862699,102210.0,102200.0,0.08829536]
[1762686976149,0.97862699,102210.0,102200.0,0.25797536]
[1762686978648,0.97862699,102210.0,102200.0,0.30535536]
[1762686979648,0.95819699,102210.0,102200.0,0.30535536]
[1762686980243,0.59739699,102210.0,102200.0,0.66615536]
[1762686981349,0.59739699,102210.0,102200.0,0.78799353]
[1762686981851,0.59739699,102210.0,102200.0,0.66607697]
[1762686982352,0.59739699,102210.0,102200.0,0.57900705]
[1762686983250,0.58367705,102230.0,102220.0,0.16968]
[1762686983458,0.53053705,102230.0,102220.0,0.30412194]
[1762686983647,0.95834404,102230.0,102220.0,0.30412194]
[1762686985345,0.96034404,102230.0,102220.0,0.30412194]
[1762686985550,0.96334404,102230.0,102220.0,0.30412194]
[1762686985944,0.96034404,102230.0,102220.0,0.30412194]
[1762686986641,0.95934404,102230.0,102220.0,0.30412194]
[1762686986948,0.96034404,102230.0,102220.0,0.30412194]
[1762686990049,0.99114404,102230.0,102220.0,0.08706194]
[1762686990349,0.99114404,102230.0,102210.0,0.12191656]
[1762686990350,0.82155404,102230.0,102210.0,0.06967799]
[1762686990544,0.82155404,102230.0,102200.0,0.20356705]
[1762686990545,0.78860699,102220.0,102200.0,0.20356705]
[1762686990745,0.3608,102210.0,102200.0,0.20356705]
[1762686990959,0.78860699,102210.0,102200.0,0.25010361]
[1762686991349,0.78860699,102210.0,102200.0,0.12818705]
[1762686991546,0.78860699,102210.0,102200.0,0.20356705]
[1762686991751,0.78860699,102210.0,102200.0,0.20556705]
[1762686992150,0.78860699,102210.0,102200.0,0.20656705]
[1762686992345,0.78860699,102210.0,102200.0,0.20456705]
[1762686992655,0.78860699,102210.0,102200.0,0.20656705]
[1762686993150,0.78860699,102210.0,102200.0,0.20556705]
[1762686994552,0.78860699,102210.0,102200.0,0.20456705]
[1762686999357,0.78860699,102210.0,102200.0,0.29167026]
[1762687001151,0.42780699,102210.0,102200.0,0.29167026]
[1762687002051,0.3608,102220.0,102210.0,0.20342]
[1762687002549,0.78860699,102220.0,102210.0,0.20342]
[1762687002855,0.78860699,102220.0,102210.0,0.32533656]
[1762687004156,0.42780699,102220.0,102210.0,0.78396955]
[1762687004357,0.42880699,102220.0,102210.0,0.78396955]
[1762687004656,0.42980699,102220.0,102210.0,0.78396955]
[1762687005057,0.42880699,102220.0,102210.0,0.78396955]
[1762687005355,0.42780699,102220.0,102210.0,0.78596955]
[1762687006757,0.42780699,102220.0,102210.0,0.78396955]
[1762687006957,0.42780699,102220.0,102210.0,0.78596955]
[1762687007657,0.42780699,102220.0,102210.0,1.33400955]
[1762687007850,0.42780699,102220.0,102210.0,1.33500955]
[1762687009361,0.36094705,102230.0,102220.0,0.18671]
[1762687009656,0.36094705,102230.0,102220.0,0.27370331]
[1762687009858,0.78875404,102230.0,102220.0,0.27370331]
[1762687010354,0.78875404,102230.0,102220.0,0.27470331]
[1762687011561,0.42795404,102230.0,102220.0,0.27470331]
[1762687011760,0.78875404,102230.0,102220.0,0.27470331]
[1762687013163,0.78875404,102230.0,102220.0,0.08799331]
[1762687013553,0.78875404,102230.0,102220.0,0.20441331]
[1762687014169,0.78875404,102230.0,102220.0,0.20341331]
[1762687014366,0.78875404,102230.0,102220.0,0.20441331]
[1762687014964,0.78975404,102230.0,102220.0,0.20441331]
[1762687015260,0.78975404,102230.0,102220.0,0.27470331]
[1762687015766,0.78975404,102230.0,102220.0,0.27370331]
[1762687016062,0.79075404,102230.0,102220.0,0.27370331]
[1762687018061,0.79075404,102230.0,102220.0,0.08699331]
[1762687018862,0.79075404,102230.0,102220.0,0.15654666]
[1762687019065,0.79075404,102230.0,102220.0,0.06955335]
[1762687022870,0.79075404,102230.0,102210.0,0.08699331]
[1762687023168,0.78860699,102220.0,102200.0,0.27880036]
[1762687023368,0.3608,102210.0,102200.0,0.27880036]
[1762687023568,0.78860699,102210.0,102200.0,0.27880036]
[1762687024768,0.78860699,102210.0,102200.0,0.27980036]
[1762687024970,0.78860699,102210.0,102200.0,0.04642705]
[1762687025271,0.78760699,102210.0,102200.0,0.04642705]
[1762687025567,0.78760699,102210.0,102200.0,0.13342036]
[1762687025763,0.78760699,102210.0,102200.0,0.04642705]
[1762687027270,0.78760699,102210.0,102200.0,0.00114705]
[1762687028067,0.78760699,102210.0,102200.0,0.04139705]
[1762687031876,0.78760699,102210.0,102200.0,0.00114705]
[1762687032367,0.78760699,102210.0,102190.0,0.12434238]
[1762687032567,0.78860699,102200.0,102190.0,0.07696238]
[1762687032766,0.78860699,102200.0,102180.0,0.73463]
[1762687032969,0.42780699,102190.0,102180.0,0.73463]
[1762687033574,0.78760699,102190.0,102180.0,0.73463]
[1762687034273,0.78760699,102190.0,102180.0,0.73763]
[1762687034469,0.78660699,102190.0,102180.0,0.73763]
[1762687035177,0.78660699,102190.0,102180.0,0.81720733]
[1762687035378,0.78660699,102190.0,102180.0,0.82020733]
[1762687038682,0.78660699,102190.0,102180.0,0.67382733]
[1762687038976,0.78660699,102190.0,102180.0,0.006]
[1762687039280,0.78660699,102190.0,102170.0,0.04049466]
[1762687039478,0.78660699,102180.0,102170.0,0.04049466]
[1762687039879,0.78660699,102180.0,102170.0,0.18687466]
[1762687040079,0.78660699,102180.0,102170.0,0.26602909]
[1762687040281,0.78560699,102180.0,102170.0,0.26602909]
[1762687040875,0.78660699,102180.0,102170.0,0.26602909]
[1762687041276,0.78660699,102180.0,102170.0,0.11964909]
[1762687041476,0.78660699,102180.0,102170.0,0.26602909]
[1762687041984,0.78860699,102180.0,102170.0,0.26602909]
[1762687042284,0.78660699,102180.0,102170.0,0.26602909]
[1762687042471,0.79060699,102180.0,102170.0,0.26602909]
[1762687042986,0.78660699,102180.0,102170.0,0.26602909]
[1762687043188,0.78960699,102180.0,102170.0,0.26602909]
[1762687043573,0.43080699,102180.0,102170.0,0.26602909]
[1762687043778,0.42880699,102180.0,102170.0,0.26602909]
[1762687043986,0.43080699,102180.0,102170.0,0.26602909]
[1762687044183,0.79160699,102180.0,102170.0,0.26602909]
[1762687044985,0.79060699,102180.0,102170.0,0.26602909]
[1762687045186,0.78760699,102180.0,102170.0,0.26602909]
[1762687045487,0.79060699,102180.0,102170.0,0.26602909]
[1762687046788,0.79160699,102180.0,102170.0,0.26602909]
[1762687053795,0.79160699,102180.0,102170.0,0.11964909]
[1762687055596,0.79160699,102180.0,102170.0,0.19223909]
[1762687055798,0.79160699,102180.0,102170.0,0.25695909]
[1762687061302,0.79160699,102180.0,102170.0,0.3266055]
[1762687067307,0.79160699,102180.0,102170.0,0.25695909]
[1762687067508,0.79160699,102180.0,102170.0,0.3439524]
[1762687071104,0.78960699,102180.0,102170.0,0.3439524]
[1762687071306,0.79060699,102180.0,102170.0,0.3439524]
[1762687072010,0.78960699,102180.0,102170.0,0.3439524]
[1762687072206,0.79160699,102180.0,102170.0,0.3439524]
[1762687072410,0.005,102180.0,102170.0,0.41371942]
[1762687072610,0.005,102180.0,102170.0,0.32672611]
[1762687073104,0.005,102180.0,102170.0,0.25695909]
[1762687073913,0.003,102180.0,102170.0,0.25695909]
[1762687074213,0.002,102180.0,102170.0,0.3439524]
[1762687074609,0.002,102180.0,102170.0,0.25695909]
[1762687075112,0.001,102180.0,102170.0,0.34512348]
[1762687075299,0.001,102180.0,102170.0,0.34511417]
[1762687076006,0.001,102180.0,102170.0,0.37987565]
[1762687078016,0.001,102180.0,102170.0,0.25795909]
[1762687078619,0.001,102180.0,102170.0,0.35583038]
[1762687078808,0.3608,102190.0,102170.0,0.35583038]
[1762687078809,0.3608,102190.0,102180.0,0.06157]
[1762687079013,0.78660699,102190.0,102180.0,0.24251089]
[1762687080020,0.78860699,102190.0,102180.0,0.24251089]
[1762687080413,0.3638,102190.0,102180.0,0.34037261]
[1762687081108,0.003,102190.0,102180.0,0.70117261]
[1762687081512,0.003,102190.0,102180.0,0.61407172]
[1762687081712,0.003,102190.0,102180.0,0.73598828]
[1762687085922,0.00014705,102200.0,102190.0,0.15541]
[1762687086111,0.42595404,102200.0,102190.0,0.29685556]
[1762687086311,0.00014705,102200.0,102190.0,0.29685556]
[1762687086512,0.3608,102210.0,102200.0,0.15541]
[1762687086712,0.3608,102220.0,102210.0,0.15541]
[1762687086915,0.3608,102220.0,102210.0,0.2422908]
[1762687087111,0.78660699,102220.0,102210.0,0.2422908]
[1762687088021,0.78760699,102220.0,102210.0,0.2422908]
[1762687089315,0.78860699,102220.0,102210.0,0.2331245]
[1762687089521,0.78760699,102220.0,102210.0,0.2331245]
[1762687090223,0.78760699,102220.0,102210.0,0.30251581]
[1762687092019,0.78760699,102220.0,102210.0,0.2331245]
[1762687092323,0.78760699,102220.0,102210.0,0.4003152]
[1762687093221,0.78760699,102220.0,102210.0,0.30248221]
[1762687093421,0.78760699,102220.0,102210.0,0.85056221]
[1762687093617,0.78760699,102220.0,102210.0,0.1743345]
[1762687094017,0.78760699,102220.0,102210.0,0.24369221]
[1762687094528,0.78760699,102220.0,102210.0,0.18212221]
[1762687094728,0.78760699,102220.0,102210.0,0.0777145]
[1762687095026,0.78760699,102220.0,102210.0,0.03505]
[1762687095618,0.78760699,102220.0,102210.0,0.15541]
[1762687097928,0.78760699,102220.0,102210.0,0.2344864]
[1762687099027,0.78760699,102220.0,102210.0,0.30384411]
[1762687100429,0.78760699,102220.0,102210.0,0.2344864]
[1762687101328,0.78760699,102220.0,102210.0,0.30384411]
[1762687105734,0.78760699,102220.0,102210.0,0.2344864]
[1762687106234,0.78760699,102220.0,102210.0,0.30384411]
[1762687110736,0.3618,102220.0,102210.0,0.30384411]
[1762687110941,0.78760699,102220.0,102210.0,0.30384411]
[1762687111336,0.78760699,102220.0,102210.0,0.2344864]
[1762687112429,0.78760699,102220.0,102210.0,0.3213672]
[1762687115433,0.78760699,102220.0,102210.0,0.30407692]
[1762687115737,0.78760699,102220.0,102210.0,0.2344864]
[1762687115935,0.78760699,102220.0,102210.0,0.3213672]
[1762687116630,0.78760699,102220.0,102210.0,0.35640296]
[1762687118935,0.78760699,102220.0,102210.0,0.44337234]
[1762687119241,0.78760699,102220.0,102210.0,0.32145578]
[1762687123144,0.78760699,102220.0,102210.0,0.37417699]
[1762687124945,0.75237434,102220.0,102210.0,0.37417699]
[1762687125145,0.75237434,102220.0,102210.0,0.32145578]
[1762687125546,0.75137434,102220.0,102210.0,0.32145578]
[1762687126742,0.75137434,102220.0,102210.0,0.32245578]
[1762687127138,0.75237434,102220.0,102210.0,0.32245578]
[1762687127542,0.75237434,102220.0,102210.0,0.32145578]
[1762687128941,0.75237434,102220.0,102210.0,0.0790764]
[1762687129151,0.75237434,102220.0,102210.0,0.1565527]
[1762687129446,0.75237434,102220.0,102210.0,0.09895332]
[1762687129638,0.75237434,102220.0,102210.0,0.19678332]
[1762687129838,0.75237434,102220.0,102210.0,0.1272]
[1762687130849,0.75237434,102220.0,102210.0,0.20565808]
[1762687131047,0.75237434,102220.0,102210.0,0.27524066]
[1762687131249,0.75237434,102220.0,102210.0,0.20565808]
[1762687135950,0.75237434,102220.0,102210.0,0.29262746]
[1762687143252,0.75237434,102220.0,102210.0,0.20565808]
[1762687143753,0.75237434,102220.0,102210.0,0.29262746]
[1762687145154,0.75237434,102220.0,102210.0,0.20565808]
[1762687146158,0.75237434,102220.0,102210.0,0.27525827]
[1762687155158,0.75237434,102220.0,102210.0,0.20565808]
[1762687158866,1.14840699,102220.0,102210.0,0.20565808]
[1762687159761,1.14840699,102220.0,102210.0,0.27525827]
[1762687161666,1.14840699,102220.0,102210.0,0.20565808]
[1762687162667,1.14840699,102220.0,102210.0,0.27525827]
[1762687164860,1.14840699,102220.0,102210.0,0.20565808]
[1762687166270,1.14840699,102220.0,102210.0,0.27534795]
[1762687171289,1.14840699,102220.0,102210.0,0.20565808]
[1762687173186,1.14840699,102220.0,102210.0,0.2753309]
[1762687174289,1.14840699,102220.0,102210.0,0.16542746]
[1762687174581,1.74840699,102220.0,102200.0,0.06982406]
[1762687174787,0.78660699,102210.0,102200.0,0.06982406]
[1762687175882,0.78660699,102210.0,102200.0,0.00014705]
[1762687176083,0.78660699,102210.0,102200.0,0.02614705]
[1762687176483,0.3608,102210.0,102200.0,0.02614705]
[1762687176683,0.78660699,102210.0,102200.0,0.02614705]
[1762687176885,0.78660699,102210.0,102200.0,0.00014705]
[1762687177488,0.78860699,102210.0,102200.0,0.00014705]
[1762687177885,0.79060699,102210.0,102200.0,0.00014705]
[1762687182288,0.79060699,102210.0,102200.0,0.07524705]
[1762687185691,0.79060699,102210.0,102200.0,0.11711705]
[1762687191999,0.3648,102210.0,102200.0,0.18679406]
[1762687192198,0.3648,102210.0,102200.0,0.20408643]
[1762687192495,0.3648,102210.0,102200.0,0.23903361]
[1762687192694,0.3648,102210.0,102200.0,0.92587153]
[1762687192890,0.004,102210.0,102200.0,1.14639754]
[1762687193292,0.3608,102220.0,102210.0,0.10577]
[1762687193490,0.3608,102220.0,102210.0,0.17522692]
[1762687194802,0.3608,102220.0,102210.0,0.22882023]
[1762687195301,0.3608,102220.0,102210.0,0.30551721]
[1762687197399,0.36094705,102230.0,102220.0,0.10511]
[1762687197804,0.78675404,102230.0,102220.0,0.10511]
[1762687199105,0.79075404,102230.0,102220.0,0.10511]
[1762687200401,0.79075404,102230.0,102220.0,0.17456692]
[1762687209002,0.36494705,102230.0,102220.0,0.41912692]
[1762687209194,0.022209,102250.0,102240.0,0.10524]
[1762687209393,0.022209,102250.0,102240.0,0.91335456]
[1762687209592,0.022209,102250.0,102240.0,1.90487359]
[1762687209793,0.02364698,102260.0,102250.0,0.10524]
[1762687210008,0.02364698,102260.0,102250.0,0.79703456]
[1762687210198,0.02364698,102260.0,102250.0,0.97873049]
[1762687210398,0.02364698,102260.0,102250.0,1.16293294]
[1762687210606,0.02364698,102260.0,102250.0,1.04172148]
[1762687211110,0.02364698,102260.0,102250.0,0.79724148]
[1762687211312,0.02364698,102260.0,102250.0,0.95532332]
[1762687212321,0.06560698,102260.0,102250.0,0.95532332]
[1762687212611,0.02364698,102260.0,102250.0,1.02435253]
[1762687212811,0.02364698,102260.0,102250.0,0.77987253]
[1762687213012,0.06560698,102260.0,102250.0,1.02435253]
[1762687213213,0.02364698,102260.0,102250.0,1.02435253]
[1762687213411,0.02364698,102260.0,102250.0,0.96507876]
[1762687214108,0.02364698,102260.0,102250.0,0.79800119]
[1762687214309,0.02364698,102260.0,102250.0,1.04248119]
[1762687215019,0.06560698,102260.0,102250.0,1.04248119]
[1762687215209,0.02364698,102260.0,102250.0,1.04248119]
[1762687216613,0.02364698,102260.0,102250.0,0.79800119]
[1762687217015,0.02364698,102260.0,102250.0,1.04248119]
[1762687217212,0.10315698,102260.0,102250.0,1.04248119]
[1762687217618,0.10315698,102260.0,102250.0,0.79800119]
[1762687217918,0.02364698,102260.0,102250.0,1.04248119]
[1762687218217,0.02364698,102260.0,102250.0,0.79800119]
[1762687218412,0.02364698,102260.0,102250.0,1.1115104]
[1762687219315,0.02364698,102260.0,102250.0,1.57486513]
[1762687220720,0.02364698,102260.0,102250.0,1.33038513]
[1762687220920,0.02364698,102260.0,102250.0,1.57486513]
[1762687222120,0.02364698,102260.0,102250.0,1.33038513]
[1762687222521,0.02364698,102260.0,102250.0,1.57486513]
[1762687222721,0.02364698,102260.0,102250.0,1.33038513]
[1762687222927,0.06560698,102260.0,102250.0,1.57486513]
[1762687223218,0.02364698,102260.0,102250.0,1.57486513]
[1762687225422,0.02364698,102260.0,102250.0,1.72316513]
[1762687226625,0.02364698,102260.0,102250.0,1.47868513]
[1762687227016,0.02364698,102260.0,102250.0,1.72316513]
[1762687229323,0.10721142,102270.0,102260.0,0.11086]
[1762687229523,0.10721142,102270.0,102260.0,1.01938]
[1762687230018,0.10721142,102270.0,102260.0,1.11717472]
[1762687231028,0.10921142,102270.0,102260.0,1.11717472]
[1762687231325,0.10921142,102270.0,102260.0,1.26547472]
[1762687234922,0.06627142,102270.0,102260.0,1.26547472]
[1762687235130,0.10921142,102270.0,102260.0,1.26547472]
[1762687235931,0.06627142,102270.0,102260.0,1.26547472]
[1762687236426,0.10921142,102270.0,102260.0,1.26547472]
[1762687237318,0.10921142,102270.0,102260.0,1.33450393]
[1762687239324,0.10921142,102270.0,102260.0,1.26547472]
[1762687239524,0.10921142,102270.0,102260.0,1.33494867]
[1762687242334,0.53501841,102270.0,102260.0,1.26547472]
[1762687243235,0.45438841,102270.0,102260.0,1.26547472]
[1762687243732,0.49207841,102270.0,102260.0,1.26547472]
[1762687244235,0.53501841,102270.0,102260.0,1.26547472]
[1762687244621,0.45438841,102270.0,102260.0,1.26547472]
[1762687245136,0.49207841,102270.0,102260.0,1.26547472]
[1762687245830,0.53501841,102270.0,102260.0,1.35187288]
[1762687247127,0.45438841,102270.0,102260.0,1.35187288]
[1762687247531,0.45438841,102270.0,102260.0,1.38668618]
[1762687248037,0.49854841,102270.0,102260.0,1.38668618]
[1762687248932,0.02858142,102270.0,102260.0,1.53632286]
[1762687249139,0.02858142,102270.0,102260.0,1.79709067]
[1762687249340,0.02938864,102280.0,102260.0,1.74789297]
[1762687249539,0.02938864,102280.0,102270.0,0.44760643]
[1762687249735,0.02938864,102280.0,102270.0,1.00366361]
[1762687249942,0.02938864,102280.0,102270.0,1.1505995]
[1762687250239,0.02938864,102280.0,102270.0,1.24838466]
[1762687250440,0.07354864,102280.0,102270.0,1.24838466]
[1762687250630,0.14528864,102280.0,102270.0,1.24838466]
[1762687251440,0.14628864,102280.0,102270.0,1.24838466]
[1762687251943,0.14528864,102280.0,102270.0,1.24838466]
[1762687252242,0.14828864,102280.0,102270.0,1.24838466]
[1762687253929,0.10344864,102280.0,102270.0,1.24838466]
[1762687254443,0.10344864,102280.0,102270.0,1.16157823]
[1762687254833,0.03338864,102280.0,102270.0,1.55431823]
[1762687255839,0.07919864,102280.0,102270.0,1.55431823]
[1762687256040,0.03338864,102280.0,102270.0,1.30987823]
[1762687256441,0.03338864,102280.0,102270.0,1.55431823]
[1762687257347,0.03338864,102280.0,102270.0,1.64109008]
[1762687257550,0.03338864,102280.0,102270.0,1.55431823]
[1762687257752,0.03338864,102280.0,102270.0,1.67589042]
[1762687258154,0.03338864,102280.0,102270.0,1.43145042]
[1762687258454,0.03338864,102280.0,102270.0,1.67589042]
[1762687259350,0.03338864,102280.0,102270.0,1.43145042]
[1762687259949,0.03338864,102280.0,102270.0,1.67589042]
[1762687260555,0.03338864,102280.0,102270.0,1.55431823]
[1762687260847,0.03338864,102280.0,102270.0,1.43129659]
[1762687261445,0.03338864,102280.0,102270.0,1.67573659]
[1762687261647,0.02993987,102290.0,102270.0,1.67573659]
[1762687261851,0.02993987,102290.0,102280.0,0.3608]
[1762687262049,0.02939526,102300.0,102280.0,0.41528262]
[1762687262257,0.02939526,102300.0,102290.0,0.69188345]
[1762687262460,0.02939526,102300.0,102290.0,0.6052]
[1762687262655,0.05971526,102300.0,102290.0,0.75220138]
[1762687263051,0.05971526,102300.0,102290.0,0.60556742]
[1762687263250,0.02939526,102300.0,102290.0,0.69219312]
[1762687263451,0.02939526,102300.0,102290.0,0.84996742]
[1762687263651,0.02939526,102300.0,102290.0,0.9742434]
[1762687263953,0.02677184,102310.0,102290.0,1.2144831]
[1762687264159,0.02677184,102310.0,102300.0,0.85421823]
[1762687264454,0.15147184,102310.0,102300.0,0.71435063]
[1762687264956,0.15147184,102310.0,102300.0,0.69083113]
[1762687265160,0.15147184,102310.0,102300.0,0.60437211]
[1762687265559,0.15147184,102310.0,102300.0,0.46055648]
[1762687265957,0.15147184,102310.0,102300.0,0.52970374]
[1762687266149,0.15147184,102310.0,102300.0,0.53170374]
[1762687269359,0.57727883,102310.0,102300.0,0.3648]
[1762687269561,0.93807883,102310.0,102300.0,0.09045902]
[1762687269753,0.93807883,102310.0,102300.0,0.07309935]
[1762687270858,0.57727883,102310.0,102300.0,0.43389935]
[1762687271052,0.57727883,102310.0,102300.0,0.07309935]
[1762687271254,0.93807883,102310.0,102300.0,0.07309935]
[1762687271455,0.93807883,102310.0,102300.0,0.004]
[1762687275061,0.88098699,102310.0,102300.0,0.004]
[1762687275366,0.55050699,102310.0,102300.0,0.004]
[1762687276665,0.55050699,102310.0,102300.0,0.07009935]
[1762687276856,0.1247,102300.0,102290.0,0.5091]
[1762687277058,0.55050699,102300.0,102290.0,0.44725902]
[1762687277263,0.1247,102290.0,102280.0,0.63920205]
[1762687277461,0.55050699,102290.0,102280.0,0.51792607]
[1762687277658,0.55050699,102290.0,102280.0,0.6242321]
[1762687277865,0.55050699,102290.0,102280.0,0.3694966]
[1762687278560,0.55050699,102290.0,102280.0,0.4047566]
[1762687279568,0.55050699,102290.0,102280.0,0.3694966]
[1762687279757,0.55050699,102290.0,102280.0,0.7083366]
[1762687280566,0.55150699,102290.0,102280.0,0.7073366]
[1762687282666,0.1257,102290.0,102280.0,0.7425966]
[1762687282864,0.55150699,102290.0,102280.0,0.7425966]
[1762687283461,0.55150699,102290.0,102280.0,0.7778566]
[1762687284169,0.55150699,102290.0,102280.0,0.7425966]
[1762687284866,0.55150699,102290.0,102280.0,0.7778566]
[1762687286962,0.55150699,102290.0,102280.0,0.84703865]
[1762687287467,0.58573699,102290.0,102280.0,0.88031865]
[1762687287666,0.58573699,102290.0,102280.0,0.84703865]
[1762687288571,0.58573699,102290.0,102280.0,0.8384891]
[1762687288759,0.58573699,102290.0,102280.0,0.84703193]
[1762687290172,0.58573699,102290.0,102280.0,0.8643089]
[1762687293575,0.15993,102290.0,102280.0,0.8643089]
[1762687293774,0.58573699,102290.0,102280.0,0.8643089]
[1762687296078,0.58473699,102290.0,102280.0,0.8643089]
[1762687298482,0.58473699,102290.0,102280.0,0.8663089]
[1762687298973,0.58473699,102290.0,102280.0,0.77984988]
[1762687299279,0.58473699,102290.0,102280.0,0.77784988]
[1762687299474,0.58473699,102290.0,102280.0,0.77884988]
[1762687300177,0.58473699,102290.0,102280.0,0.77784988]
[1762687301673,0.58473699,102290.0,102280.0,0.34652988]
[1762687301869,0.94553699,102290.0,102280.0,0.3219889]
[1762687302075,0.94553699,102290.0,102280.0,0.19388831]